{"text_format":"3","workbook":"xlsx","n_sheets":1,"sheets":["2023年衢州市市属事业单位公开招聘工作人员计划表"],"not_rendered":{"defined_names":3},"read":"whole","date_system":"1900"}

{"sheet":"2023年衢州市市属事业单位公开招聘工作人员计划表","index":0,"n_rows":110,"n_cols":833,"rows_kept":110,"merged":[[0,0,0,17],[4,1,6,1],[5,2,6,2],[7,1,8,1],[7,2,8,2],[9,1,10,1],[9,2,10,2],[11,1,12,1],[13,1,17,1],[14,2,17,2],[19,1,20,1],[21,1,22,1],[23,1,30,1],[24,2,26,2],[27,2,29,2],[32,1,40,1],[33,2,34,2],[35,2,36,2],[39,2,40,2],[42,1,50,1],[42,2,44,2],[45,2,49,2],[51,1,63,1],[51,2,56,2],[57,2,60,2],[62,2,63,2],[64,1,78,1],[64,2,69,2],[70,2,74,2],[79,1,80,1],[79,2,80,2],[81,1,82,1],[86,1,90,1],[88,2,89,2],[91,1,97,1],[98,1,99,1],[98,2,99,2],[100,1,102,1],[100,2,102,2],[103,1,105,1],[103,2,105,2],[109,0,109,17]]}
["2023年衢州市市属事业单位公开招聘工作人员计划表"]
["序号","主管部门名称","招聘单位名称","单位性质","岗位代码","岗位名称","岗位类别","需求人数","学历、学位\n要求","专业要求","专业技术任职资格（职业资格）","现有身份（工作经历）要求","政治面貌要求","年龄要求","户籍要求","性别要求","咨询电话","备注"]
[1,"中共衢州市委办公室","衢州市党委信息网络中心","财政全额补助","001","网络信息技术","专技",1,"本科及以上","本科所学专业要求为：三级专业目录计算机类：不限\n研究生所学专业要求为：三级专业目录计算机科学与技术类：不限","不限","不限","中共党员（含预备党员）","30周岁及以下","不限","不限","0570-3086746",{"$nulls":815},{"$f":"EXACT(#REF!,CONCATENATE(B3,C3))","v":{"$error":"#REF!"}}]
[2,"衢州市人民检察院","衢州市人民检察院检察事务中心","财政全额补助","002","综合管理","管理",1,"本科及以上","不限","不限","衢州地区检察院在职司法雇员","不限","35周岁及以下","不限","不限","0570-3135186 0570-3135010","要求在衢州地区\n检察院从事司法雇员工作满两年及以上",{"$nulls":814},{"$f":"EXACT(#REF!,CONCATENATE(B4,C4))","v":{"$error":"#REF!"}}]
[3,"中共衢州市委政法委员会","衢州市法学会秘书处","财政全额补助","003","综合信息","专技",1,"硕士研究生及以上","不限","不限","不限","中共党员（含预备党员）","35周岁及以下","不限","不限","0570-3039208",{"$nulls":815},{"$f":"EXACT(#REF!,CONCATENATE(B5,C5))","v":{"$error":"#REF!"}}]
[4,null,"衢州市大联动中心","财政全额补助","004","信息维护","专技",1,"硕士研究生及以上","二级专业门类：工学：不限","不限","不限","中共党员（含预备党员）","35周岁及以下","不限","不限","0570-3039208",{"$nulls":815},{"$f":"EXACT(#REF!,CONCATENATE(B6,C6))","v":{"$error":"#REF!"}}]
[5,null,null,"财政全额补助","005","综合文字","管理",2,"本科及以上","二级专业门类：文学：不限","不限","不限","中共党员（含预备党员）","35周岁及以下","不限","不限","0570-3039208",{"$nulls":815},{"$f":"EXACT(#REF!,CONCATENATE(B7,C7))","v":{"$error":"#REF!"}}]
[6,"中共衢州市委网络安全和信息化委员会办公室","衢州市网络综合治理服务中心","财政全额补助","006","网络传播与引导","管理",1,"本科及以上","本科所学专业要求为：三级专业目录公共管理类：不限 或者 法学类：不限 或者 政治学类：不限 或者 社会学类：不限 或者 新闻传播学类：不限 或者 电子信息类：不限 或者 计算机类：不限 或者 公安技术类：网络安全与执法\n研究生所学专业要求为：三级专业目录法学类：不限 或者 政治学类：不限 或者 社会学类：不限 或者 新闻传播学类：不限 或者 网络空间安全类：不限 或者 公共管理类：不限 或者 计算机科学与技术类：不限 或者 软件工程类：不限 ","不限 ","不限 ","中共党员（含预备党员）","35周岁及以下 ","不限 ","不限 ","0570-3081190",{"$nulls":815},{"$f":"EXACT(#REF!,CONCATENATE(B8,C8))","v":{"$error":"#REF!"}}]
[7,null,null,"财政全额补助","007","网络信息技术","专技",1,"本科及以上","本科所学专业要求为：三级专业目录电子信息类：不限 或者 计算机类：不限 或者  公安技术类：网络安全与执法\n研究生所学专业要求为：三级专业目录信息与通信工程类：不限 或者 计算机科学与技术类：不限 或者 软件工程类：不限 或者 网络空间安全类：不限","不限 ","不限 ","中共党员（含预备党员）","35周岁及以下 ","不限 ","不限 ","0570-3081190",{"$nulls":815},{"$f":"EXACT(#REF!,CONCATENATE(B9,C9))","v":{"$error":"#REF!"}}]
[8,"中共衢州市委台湾工作办公室","衢州市海峡两岸交流中心","财政全额补助","008","综合管理1","管理",1,"本科及以上","不限","不限","不限","不限","35周岁及以下","不限","男","0570-8020109",{"$nulls":815},{"$f":"EXACT(#REF!,CONCATENATE(B10,C10))","v":{"$error":"#REF!"}}]
[9,null,null,"财政全额补助","009","综合管理2","管理",1,"本科及以上","不限","不限","不限","不限","35周岁及以下","不限","女","0570-8020109",{"$nulls":815},{"$f":"EXACT(#REF!,CONCATENATE(B11,C11))","v":{"$error":"#REF!"}}]
[10,"中共衢州市委党校","中共衢州市委党校","财政全额补助","010","教师1","专技",2,"硕士研究生及以上","研究生所学专业要求为：三级专业目录哲学类：不限 或者 理论经济学类：不限 或者 应用经济学类：不限 或者法学类：不限 或者 政治学类：不限 或者 社会学类：不限 或者 马克思主义理论类：不限 或者 教育学类：不限 或者 中国语言文学类：不限 或者 中国史类：不限 或者 工商管理类：不限 或者 公共管理类：不限","不限","不限","不限","35周岁及以下","不限","不限","0570-3829001"]
[11,null,"中共衢州市委党校","财政全额补助","011","教师2","专技",1,"硕士研究生及以上","研究生所学专业要求为：三级专业目录哲学类：不限 或者 理论经济学类：不限 或者 应用经济学类：不限 或者法学类：不限 或者 政治学类：不限 或者 社会学类：不限 或者 马克思主义理论类：不限 或者 教育学类：不限 或者 中国语言文学类：不限 或者 中国史类：不限 或者 工商管理类：不限 或者 公共管理类：不限","不限","具有两年及以上党校、高校或机关事业单位工作经历","不限","35周岁及以下","不限","不限","0570-3829001",{"$nulls":815},{"$f":"EXACT(#REF!,CONCATENATE(B12,C13))","v":{"$error":"#REF!"}}]
[12,"衢州市发展和改革委员会","衢州市发展规划院","财政全额补助","012","项目管理","专技",1,"本科及以上","二级专业门类：经济学：不限","不限","不限","不限","35周岁及以下","不限","不限","0570-3074525",{"$nulls":815},{"$f":"EXACT(#REF!,CONCATENATE(B14,C14))","v":{"$error":"#REF!"}}]
[13,null,"衢州市对口支援和区域合作中心","财政全额补助","013","项目管理1","专技",1,"本科及以上","二级专业门类：经济学：不限","不限","不限","不限","35周岁及以下","不限","男","0570-3074525",{"$nulls":815},{"$f":"EXACT(#REF!,CONCATENATE(B15,C15))","v":{"$error":"#REF!"}}]
[14,null,null,"财政全额补助","014","项目管理2","专技",1,"本科及以上","二级专业门类：经济学：不限","不限","不限","不限","35周岁及以下","不限","女","0570-3074525",{"$nulls":815},{"$f":"EXACT(#REF!,CONCATENATE(B16,C16))","v":{"$error":"#REF!"}}]
[15,null,null,"财政全额补助","015","项目管理3","专技",1,"硕士研究生及以上","二级专业门类：经济学：不限","不限","不限","不限","35周岁及以下","不限","男","0570-3074525",{"$nulls":815},{"$f":"EXACT(#REF!,CONCATENATE(B17,C17))","v":{"$error":"#REF!"}}]
[16,null,null,"财政全额补助","016","项目管理4","专技",1,"硕士研究生及以上","二级专业门类：经济学：不限","不限","不限","不限","35周岁及以下","不限","女","0570-3074525",{"$nulls":815},{"$f":"EXACT(#REF!,CONCATENATE(B18,C18))","v":{"$error":"#REF!"}}]
[17,"衢州市民政局","衢州市儿童福利院","财政全额补助","017","保育护士","专技",1,"本科及以上","本科所学专业要求为：护理学 或者 护理\n研究生所学专业要求为：护理学 或者 护理 或者 基础护理学 或者 临床护理学 或者 社区护理学","不限","不限","不限","35周岁及以下","不限","不限","0570-8790830","负责做好院内儿童的各项日常（包括夜间）照料和护理工作，需倒夜班"]
[18,"衢州市财政局","衢州市财政数字信息和教育中心","财政全额补助","018","技术维护","专技",1,"本科及以上","本科所学专业要求为：三级专业目录计算机类：不限\n研究生所学专业要求为：三级专业目录计算机科学与技术类：不限  或者 软件工程类：不限","不限","具有两年及以上相关工作经历","不限","35周岁及以下","不限","不限","0570-3033913"]
[19,null,"衢州市政府和社会资本合作服务中心","财政全额补助","019","投融资管理","专技",1,"本科及以上","本科所学专业要求为：投资学 或者 金融学 或者 金融 或者 会计学 或者 会计 或者 财务会计与审计 或者 大数据与会计 或者 财务管理 或者 大数据与财务管理 或者 财政学\n研究生所学专业要求为：投资学 或者 金融学 或者 金融 或者 投融资决策与风险控制 或者 财务管理 或者 财务学 或者 会计学 或者 会计 或者财政学","不限","不限","不限","35周岁及以下","不限","不限","0570-3033913",{"$nulls":815},{"$f":"EXACT(#REF!,CONCATENATE(B19,C19))","v":{"$error":"#REF!"}}]
[20,"衢州市人力资源和社会保障局","衢州市技能人才评价管理服务中心","财政全额补助","020","综合管理1","专技",1,"本科及以上","本科所学专业要求为：三级专业目录工商管理类：人力资源管理 或者 劳动关系\n公共管理类：公共事业管理  或者 行政管理  或者  行政管理学   或者  经济与行政管理  或者   公共政策学  或者   公共管理  或者 社会保障 或者 劳动与社会保障 或者 劳动和社会保障\n研究生所学专业要求为：三级专业目录工商管理类：人力资源管理\n公共管理类：公共管理  或者  公共管理学  或者  公共人力资源管理  或者  公共组织与人力资源  或者  公共组织与人力资源管理  或者  劳动关系  或者  人力资源管理  或者  社会保障  或者  行政管理  或者  组织与人力资源管理","不限","应届高校毕业生\n","不限","35周岁及以下","不限","男","0570-3079852",{"$nulls":815},{"$f":"EXACT(#REF!,CONCATENATE(B22,C22))","v":{"$error":"#REF!"}}]
[21,null,"衢州市技能人才评价管理服务中心","财政全额补助","021","综合管理2","专技",1,"本科及以上","本科所学专业要求为：三级专业目录工商管理类：人力资源管理 或者 劳动关系\n公共管理类：公共事业管理  或者 行政管理  或者  行政管理学   或者  经济与行政管理  或者  公共政策学  或者  公共管理  或者  社会保障  或者 劳动与社会保障 或者 劳动和社会保障\n研究生所学专业要求为：三级专业目录工商管理类：人力资源管理\n公共管理类：公共管理  或者  公共管理学  或者  公共人力资源管理  或者  公共组织与人力资源  或者  公共组织与人力资源管理  或者  劳动关系  或者  人力资源管理  或者  社会保障  或者  行政管理  或者  组织与人力资源管理","不限","应届高校毕业生\n","不限","35周岁及以下","不限","女","0570-3079852",{"$nulls":815},{"$f":"EXACT(#REF!,CONCATENATE(B23,C23))","v":{"$error":"#REF!"}}]
[22,"衢州市自然资源和规划局","衢州市自然资源调查登记中心","财政全额补助","022","土地管理","管理",1,"本科及以上","本科所学专业要求为：土地资源管理 或者 国土资源管理 或者 国土规划与整治 或者 土地整治工程\n研究生所学专业要求为：土地资源管理 或者 自然资源管理 或者  资源经济与土地管理","不限","不限","不限","35周岁及以下","不限","不限","0570-3862326",{"$nulls":815},{"$f":"EXACT(#REF!,CONCATENATE(B24,C24))","v":{"$error":"#REF!"}}]
[23,null,"衢州市国土整治和征收储备中心","财政全额补助","023","土地整治","专技",1,"本科及以上","本科所学专业要求为：土地资源管理 或者 国土资源管理 或者 国土规划与整治 或者 土地整治工程\n研究生所学专业要求为：土地资源管理 或者 自然资源管理 或者 资源经济与土地管理","不限","不限","不限","35周岁及以下","不限","不限","0570-3860080",{"$nulls":815},{"$f":"EXACT(#REF!,CONCATENATE(B25,C25))","v":{"$error":"#REF!"}}]
[24,null,null,"财政全额补助","024","土地管理","管理",1,"本科及以上","本科所学专业要求为：土地资源管理 或者 国土规划与整治 或者  国土资源管理 或者 土地整治工程\n研究生所学专业要求为：土地资源管理 或者 自然资源管理 或者  资源经济与土地管理","不限","不限","不限","35周岁及以下","不限","不限","0570-3860080",{"$nulls":815},{"$f":"EXACT(#REF!,CONCATENATE(B26,C26))","v":{"$error":"#REF!"}}]
[25,null,null,"财政全额补助","025","规划管理","管理",1,"本科及以上","本科所学专业要求为：建筑设计 或者 城乡规划 或者 城市规划  或者 人文地理与城乡规划\n研究生所学专业要求为：建筑设计及其理论 或者 城乡规划 或者 城市规划  或者 城市规划与管理 或者 城乡发展与规划 或者 城市规划与设计","不限","不限","不限","35周岁及以下","不限","不限","0570-3860080",{"$nulls":815},{"$f":"EXACT(#REF!,CONCATENATE(B27,C27))","v":{"$error":"#REF!"}}]
[26,null,"衢州市柯城国土整治和征收中心","财政全额补助","026","土地管理","管理",1,"本科及以上","本科所学专业要求为：土地资源管理 或者 自然地理与资源环境 或者 地理科学 或者 地理信息科学\n研究生所学专业要求为：土地资源管理 或者 自然地理学 或者 地图学与地理信息系统 或者 人文地理学","不限","不限","不限","35周岁及以下","不限","不限","0570-3867797",{"$nulls":815},{"$f":"EXACT(#REF!,CONCATENATE(B28,C28))","v":{"$error":"#REF!"}}]
[27,null,null,"财政全额补助","027","规划管理","管理",1,"本科及以上","本科所学专业要求为：土地规划与利用 或者 城乡规划 或者 城市规划  或者 风景园林 或者 城市设计 或者 人文地理与城乡规划\n研究生所学专业要求为：城市规划与管理 或者 城乡发展与规划 或者 城市规划与设计 或者 风景园林规划与设计","不限","不限","不限","35周岁及以下","不限","不限","0570-3867797",{"$nulls":815},{"$f":"EXACT(#REF!,CONCATENATE(B29,C29))","v":{"$error":"#REF!"}}]
[28,null,null,"财政全额补助","028","综合文字","管理",1,"本科及以上","本科所学专业要求为：汉语言 或者 汉语言文学 或  秘书学\n研究生所学专业要求为：汉语言文学 或者 现代汉语语言学 或者  汉语言文化国际教育 或者 新闻学","不限","不限","不限","35周岁及以下","不限","不限","0570-3867797",{"$nulls":815},{"$f":"EXACT(#REF!,CONCATENATE(B30,C30))","v":{"$error":"#REF!"}}]
[29,null,"衢州市衢江国土整治和征收中心","财政全额补助","029","地矿管理","管理",1,"本科及以上","本科所学专业要求为：地质学 或者 地质工程 或者 勘查技术与工程 或者 资源勘查工程 或者 采矿工程\n研究生所学专业要求为：地质工程 或者 矿产普查与勘探 或者 采矿工程","不限","不限","不限","35周岁及以下","不限","不限","0570-3679260",{"$nulls":815},{"$f":"EXACT(#REF!,CONCATENATE(B31,C31))","v":{"$error":"#REF!"}}]
[30,"衢州市生态环境局","衢州市生态环境技术服务中心","财政全额补助","030","技术管理","专技",2,"本科及以上","本科所学专业要求为：三级专业目录环境科学与工程类：不限 或者 化学类：不限\n 研究生所学专业要求为：三级专业目录环境科学与工程类：不限 或者 化学类：不限 ","不限","不限","不限","35周岁及以下","不限","不限","0570-3089685",{"$nulls":815},{"$f":"EXACT(#REF!,CONCATENATE(B32,C32))","v":{"$error":"#REF!"}}]
[31,"衢州市住房和城乡建设局","衢州市政府投资项目建设中心","财政全额补助","031","工程管理","专技",1,"本科及以上","本科所学专业要求为：三级专业目录建筑类不限 或者 土木类：不限\n研究生所学专业要求为：三级专业目录建筑学类 不限 或者 土木工程类：不限","不限","不限","不限","35周岁及以下","不限","不限","0570-8897027",{"$nulls":815},{"$f":"EXACT(#REF!,CONCATENATE(B33,C33))","v":{"$error":"#REF!"}}]
[32,null,"衢州市住房保障和房地产管理服务中心","财政全额补助","032","房地产管理","专技",2,"本科及以上","本科所学专业要求为：房地产开发与管理 或者 房地产经营管理 或者 土地资源管理 或者 土地管理及房地产 或者 土地管理及房地产开发 或者 工程造价 或者 工程造价管理\n研究生所学专业要求为：城市与房地产经济学 或者 房地产经济学 或者 房地产经济与管理 或者 房地产开发与管理 或者 房地产开发与建设管理 或者 土地资源管理 或者 土地行政与房地产管理 或者 建设与房地产管理 或者 工程财务与造价管理","不限","不限","不限","35周岁及以下","不限","不限","0570-3025980",{"$nulls":815},{"$f":"EXACT(#REF!,CONCATENATE(B34,C34))","v":{"$error":"#REF!"}}]
[33,null,null,"财政全额补助","033","综合文字","管理",1,"本科及以上","本科所学专业要求为：行政管理 或者 行政管理学 或者 汉语言文学 或者 汉语言 或者 秘书学 或者 高级文秘 或者 新闻学 或者 新闻与传播 或者 法学 或者 法律\n研究生所学专业要求为：行政管理 或者 汉语言文字学 或者 写作理论与实践 或者 写作学 或者 新闻传播学 或者 新闻学 或者 新闻与传播 或者 法学 或者 法律 或者 法律（法学） 或者 法律（非法学）","不限","不限","不限","35周岁及以下","不限","不限","0570-3025980",{"$nulls":815},{"$f":"EXACT(#REF!,CONCATENATE(B35,C35))","v":{"$error":"#REF!"}}]
[34,null,"衢州市市政公用管理服务中心","财政全额补助","034","信息管理","管理",1,"本科及以上","本科所学专业要求为：三级专业目录计算机类：不限\n研究生所学专业要求为：三级专业目录计算机科学与技术类：不限","不限","不限","不限","35周岁及以下","不限","不限","0570-3025320",{"$nulls":815},{"$f":"EXACT(#REF!,CONCATENATE(B36,C36))","v":{"$error":"#REF!"}}]
[35,null,null,"财政全额补助","035","工程管理","专技",1,"硕士研究生及以上","研究生所学专业要求为：三级专业目录土木工程类：不限","不限","不限","不限","35周岁及以下","不限","不限","0570-3025320",{"$nulls":815},{"$f":"EXACT(#REF!,CONCATENATE(B37,C37))","v":{"$error":"#REF!"}}]
[36,null,"衢州市建设工程质量安全监督站","财政全额补助","036","建设工程质量安全监督","专技",1,"硕士研究生及以上","研究生所学专业要求为：结构工程 或者 消防工程 或者 土木工程 或者 建筑 或者 建筑与土木工程","不限","不限","不限","35周岁及以下","不限","不限","0570-8758708",{"$nulls":815},{"$f":"EXACT(#REF!,CONCATENATE(B38,C38))","v":{"$error":"#REF!"}}]
[37,null,"衢州市名城保护和村镇建设管理服务中心","财政全额补助","037","财务管理","专技",1,"本科及以上","本科所学专业要求为：会计学 或者 财务会计与审计 或者 会计或者 财务管理 或者 审计学 或者 财务会计教育\n研究生所学专业要求为：财务管理 或者 财务学 或者 会计 或者 会计学 或者 审计 或者 审计学","不限","不限","不限","35周岁及以下","不限","不限","0570-8897070",{"$nulls":815},{"$f":"EXACT(#REF!,CONCATENATE(B39,C39))","v":{"$error":"#REF!"}}]
[38,null,"衢州市建设事业服务中心","财政全额补助","038","综合文字","管理",1,"本科及以上","本科所学专业要求为：行政管理 或者 行政管理学 或者 汉语言文学 或者 汉语言 或者 秘书学 或者 高级文秘 或者 新闻学 或者 新闻与传播 或者 法学 或者 法律\n研究生所学专业要求为：行政管理 或者 汉语言文字学 或者 写作理论与实践 或者 写作学 或者 新闻传播学 或者 新闻学 或者 新闻与传播 或者 法学 或者 法律 或者 法律（法学） 或者 法律（非法学）","不限","不限","不限","35周岁及以下","不限","不限","0570-8766613",{"$nulls":815},{"$f":"EXACT(#REF!,CONCATENATE(B40,C40))","v":{"$error":"#REF!"}}]
[39,null,null,"财政全额补助","039","城市建设管理","专技",1,"本科及以上","本科所学专业要求为：建筑学 或者 建筑设计 或者 城乡规划 或者 城市规划 或者 城市设计 或者 土木工程 或者 工民建 或者 工业与民用建筑 或者 建筑工程 或者 给排水科学与工程 或者 城市地下空间工程 或者 城市地下工程 或者 道路桥梁与渡河工程 或者 道路与桥梁工程 或者 给水排水 或者 给排水工程 或者 给水排水工程 或者 市政工程 或者 城市设施智慧管理 或者 工程管理 或者 建设工程管理\n研究生所学专业要求为：建筑技术科学 或者 建筑学 或者 城市地下空间工程 或者 城乡规划学 或者 城乡规划 或者 建筑与土木工程 或者 结构工程 或者 桥梁与隧道工程 或者 市政工程 或者 土木工程 或者 工程管理 或者 建设工程管理","不限","不限","不限","35周岁及以下","不限","不限","0570-8766613",{"$nulls":815},{"$f":"EXACT(#REF!,CONCATENATE(B41,C41))","v":{"$error":"#REF!"}}]
[40,"衢州市国防动员办公室","衢州市人防指挥综合保障中心","财政全额补助","040","人防指挥通信","专技",1,"本科及以上","本科所学专业要求为：网络工程  或者 网络工程技术  或者  计算机科学与技术  或者  计算机应用工程  或者  计算机及应用  或者  通信工程  或者  信息工程  或者  信息安全与管理  或者  信息安全  或者  保密技术 \n研究生所学专业要求为：计算机科学与技术  或者  计算机网络与信息安全  或者  计算机应用技术  或者  计算机技术  或者  网络安全技术与工程  或者  网络信息安全  或者  数据科学和信息技术  或者  保密科学与技术  或者 信息安全","不限","不限","不限","35周岁及以下","不限","不限",13967038791]
[41,"衢州市交通运输局","衢州市综合交通发展保障中心","财政全额补助","041","综合文字","管理",1,"本科及以上","本科所学专业要求为：汉语言文学 或者 汉语言  或者  新闻学  或者  新闻与传播  或者  传播学\n研究生所学专业要求为：现代汉语语言学  或者 写作理论与实践  或者  中国现当代文学  或者  中国语言文学  或者  新闻学  或者  新闻与传播  或者  新闻传播学  或者  传播学","不限","不限","不限","35周岁及以下","不限","不限","0570-3032901",{"$nulls":815},{"$f":"EXACT(#REF!,CONCATENATE(B43,C43))","v":{"$error":"#REF!"}}]
[42,null,null,"财政全额补助","042","项目前期规划1","专技",2,"本科及以上","本科所学专业要求为：土木工程（交通方向）  或者 交通工程  或者  道路桥梁与渡河工程  或者  道路与桥梁工程  或者  交通土建工程  或者  土木、水利与交通工程\n研究生所学专业要求为：桥梁与遂道工程  或者  土木工程（交通方向）   或者  土木工程规划与管理（交通方向） 或者  土木工程建造与管理（交通方向） 或者  交通工程  或者  交通安全与工程管理  或者  交通运输规划与管理","不限","不限","不限","35周岁及以下","不限","不限","0570-3032901",{"$nulls":815},{"$f":"EXACT(#REF!,CONCATENATE(B44,C44))","v":{"$error":"#REF!"}}]
[43,null,null,"财政全额补助","043","项目前期规划2","专技",1,"本科及以上","本科所学专业要求为：通用航空航务技术  或者  航天运输与控制  或者  交通设备与信息工程\n研究生所学专业要求为：交通信息工程及控制  或者  智能交通与信息系统工程 ","不限","不限","不限","35周岁及以下","不限","不限","0570-3032901",{"$nulls":815},{"$f":"EXACT(#REF!,CONCATENATE(B45,C45))","v":{"$error":"#REF!"}}]
[44,null,"衢州市公路港航与运输管理中心","财政全额补助","044","档案管理","专技",1,"本科及以上","本科所学专业要求为：档案学 或者 档案管理 或者 信息资源管理            \n研究生所学专业要求为：档案学 或者 图书情报与档案管理 或者  信息资源管理            ","不限","不限","不限","35周岁及以下","不限","不限","0570-3890076、0570-3891265",{"$nulls":815},{"$f":"EXACT(#REF!,CONCATENATE(B46,C46))","v":{"$error":"#REF!"}}]
[45,null,null,"财政全额补助","045","综合文字","管理",1,"本科及以上","本科所学专业要求为：汉语言文学 或者 汉语言 或者 汉语国际教育 或者 汉语言文学教育 或者 新闻学 或者 文秘教育 或者 秘书学 或者 高级文秘 或者 文秘与办公自动化\n 研究生所学专业要求为：汉语国际教育 或者 汉语言文化国际教育 或者 新闻学 或者 高级秘书与行政助理学","不限","不限","不限","35周岁及以下","不限","不限","0570-3890076、0570-3891265",{"$nulls":815},{"$f":"EXACT(#REF!,CONCATENATE(B47,C47))","v":{"$error":"#REF!"}}]
[46,null,null,"财政全额补助","046","港口航道","专技",1,"本科及以上","本科所学专业要求为：港口航道与海岸工程 或者 港口海岸及治河工程  或者 治河与港航工程 或者 水利水电工程 或者 生态水利工程\n                       研究生所学专业要求为：港口、海岸及近海工程 或者 水利工程 或者 水利水电工程 或者 水利水电工程管理 或者 水利水电建设与管理","不限","不限","不限","35周岁及以下","不限","不限","0570-3890076、0570-3891265",{"$nulls":815},{"$f":"EXACT(#REF!,CONCATENATE(B48,C48))","v":{"$error":"#REF!"}}]
[47,null,null,"财政全额补助","047","交通运输管理","专技",1,"本科及以上","本科所学专业要求为：三级专业目录交通运输类：不限\n研究生所学专业要求为：三级专业目录交通运输工程类：不限","不限","不限","不限","35周岁及以下","不限","不限","0570-3890076、0570-3891265",{"$nulls":815},{"$f":"EXACT(#REF!,CONCATENATE(B49,C49))","v":{"$error":"#REF!"}}]
[48,null,null,"财政全额补助","048","公路工程","专技",1,"本科及以上","本科所学专业要求为：交通工程 或者 土木、水利与交通工程 或者 土木工程 或者 道路桥梁与渡河工程 或者 交通土建工程 \n研究生所学专业要求为：交通工程 或者 道路与铁道工程 或者 结构工程 或者 土木工程 或者 道路交通工程与灾害防治 或者 土木工程建造与管理 或者 桥梁与隧道工程","不限","不限","不限","35周岁及以下","不限","不限","0570-3890076、0570-3891265","专业所学为公路、桥梁、隧道方向。",{"$nulls":814},{"$f":"EXACT(#REF!,CONCATENATE(B50,C50))","v":{"$error":"#REF!"}}]
[49,null,"衢州市交通工程管理中心","财政全额补助","049","财务管理","专技",1,"本科及以上","本科所学专业要求为：会计学 或者 财务会计与审计 或者 会计或者 财务管理 或者 审计学 \n研究生所学专业要求为：财务管理 或者 财务学 或者 会计 或者 会计学 或者 审计 或者 审计学","不限","不限","不限","35周岁及以下","不限","不限","17757085558、18057009228",{"$nulls":815},{"$f":"EXACT(#REF!,CONCATENATE(B51,C51))","v":{"$error":"#REF!"}}]
[50,"衢州市文化广电旅游局","衢州市图书馆","财政全额补助","050","参考咨询","专技",1,"本科及以上","本科所学专业要求为：三级专业目录经济学类：不限 或者 社会学类：不限 或者 历史学类：不限                                       \n研究生所学专业要求为：三级专业目录应用经济学类：不限 或者 社会学类：不限 或者 中国史类：不限；","不限","不限","不限","35周岁及以下","不限","不限","0570-8758201",{"$nulls":815},{"$f":"EXACT(#REF!,CONCATENATE(B52,C52))","v":{"$error":"#REF!"}}]
[51,null,null,"财政全额补助","051","阅读推广","专技",1,"本科及以上","本科所学专业要求为：三级专业目录新闻传播学类：不限 或者 中国语言文学类：不限                                               \n 研究生所学专业要求为：三级专业目录新闻传播学类：不限 或者 中国语言文学类：不限                                                     ","不限","不限","不限","35周岁及以下","不限","不限","0570-8758201",{"$nulls":815},{"$f":"EXACT(#REF!,CONCATENATE(B53,C53))","v":{"$error":"#REF!"}}]
[52,null,null,"财政全额补助","052","文献采访1","专技",1,"本科及以上","本科所学专业要求为：三级专业目录图书情报与档案管理类：不限                                            研究生所学专业要求为：三级专业目录图书情报与档案管理类：不限","不限","不限","不限","35周岁及以下","不限","男","0570-8758201",{"$nulls":815},{"$f":"EXACT(#REF!,CONCATENATE(B54,C54))","v":{"$error":"#REF!"}}]
[53,null,null,"财政全额补助","053","文献采访2","专技",1,"本科及以上","本科所学专业要求为：三级专业目录图书情报与档案管理类：不限                                            研究生所学专业要求为：三级专业目录图书情报与档案管理类：不限","不限","不限","不限","35周岁及以下","不限","女","0570-8758201",{"$nulls":815},{"$f":"EXACT(#REF!,CONCATENATE(B55,C55))","v":{"$error":"#REF!"}}]
[54,null,null,"财政全额补助","054","图书流通1","专技",1,"本科及以上","本科所学专业要求为：三级专业目录公共管理类：不限\n研究生所学专业要求为：三级专业目录公共管理类：不限","不限","不限","不限","35周岁及以下","不限","男","0570-8758201",{"$nulls":815},{"$f":"EXACT(#REF!,CONCATENATE(B56,C56))","v":{"$error":"#REF!"}}]
[55,null,null,"财政全额补助","055","图书流通2","专技",1,"本科及以上","本科所学专业要求为：三级专业目录公共管理类：不限 \n研究生所学专业要求为：三级专业目录公共管理类：不限","不限","不限","不限","35周岁及以下","不限","女","0570-8758201",{"$nulls":815},{"$f":"EXACT(#REF!,CONCATENATE(B57,C57))","v":{"$error":"#REF!"}}]
[56,null,"衢州市文化馆","财政全额补助","056","艺术编辑传播","专技",1,"本科及以上","本科所学专业要求为：三级专业目录戏剧与影视学类：不限 或者 新闻传播学类：不限   \n研究生所学专业要求为：三级专业目录戏剧与影视学类：不限 或者 新闻传播学类：不限                                                                                                                                                                                ","不限","不限","不限","35周岁及以下","不限","不限","0570-8586990",{"$nulls":815},{"$f":"EXACT(#REF!,CONCATENATE(B58,C58))","v":{"$error":"#REF!"}}]
[57,null,null,"财政全额补助","057","群文理论研究","专技",1,"本科及以上"," 本科所学专业要求为：三级专业目录中国语言文学类：不限\n 研究生所学专业要求为：三级专业目录中国语言文学类：不限            ","不限","不限","不限","35周岁及以下","不限","不限","0570-8586990",{"$nulls":815},{"$f":"EXACT(#REF!,CONCATENATE(B59,C59))","v":{"$error":"#REF!"}}]
[58,null,null,"财政全额补助","058","艺术设计及管理","专技",1,"本科及以上","本科所学专业要求为：三级专业目录要求设计学类：不限  \n研究生所学专业要求为： 三级专业目录设计学类：不限              ","不限","不限","不限","35周岁及以下","不限","不限","0570-8586990",{"$nulls":815},{"$f":"EXACT(#REF!,CONCATENATE(B60,C60))","v":{"$error":"#REF!"}}]
[59,null,null,"财政全额补助","059","美术","专技",1,"本科及以上","本科所学专业要求为：三级专业目录美术学类：美术学 或者 书法学  或者  绘画  或者  中国画 或者  中国画与书法 或者 跨媒体艺术 \n研究生所学专业要求为：三级专业目录美术学类：不限                ","不限","不限","不限","35周岁及以下","不限","不限","0570-8586990",{"$nulls":815},{"$f":"EXACT(#REF!,CONCATENATE(B61,C61))","v":{"$error":"#REF!"}}]
[60,null,"衢州市旅游发展中心","财政全额补助","060","信息宣传","专技",1,"本科及以上","本科所学专业要求为：三级专业目录中国语言文学类：不限 或者 旅游管理类：不限 或者 工商管理类：不限 \n研究生所学专业要求为：三级专业目录中国语言文学类：不限 或者 工商管理类：不限        ","不限","不限","不限","35周岁及以下","不限","不限","0570-8878813",{"$nulls":815},{"$f":"EXACT(#REF!,CONCATENATE(B62,C62))","v":{"$error":"#REF!"}}]
[61,null,"衢州市西安高腔传习所","财政适当补助","061","演员","专技",3,"中专及以上","戏曲 或者 戏剧戏曲学 或者 表演 或者 表演艺术 或者 戏曲表演  或者 影视表演 或者 戏剧影视表演","不限","不限","不限","35周岁及以下 ","不限","不限","0570-3025149",{"$nulls":815},{"$f":"EXACT(#REF!,CONCATENATE(B63,C63))","v":{"$error":"#REF!"}}]
[62,null,null,"财政适当补助","062","演奏员（主胡）","专技",1,"中专及以上","音乐表演 或者 戏曲表演 或者 戏曲伴奏 或者 婺剧伴奏  或者 戏曲音乐 或者 曲艺表演","不限","不限","不限","35周岁及以下 ","不限","不限","0570-3025149",{"$nulls":815},{"$f":"EXACT(#REF!,CONCATENATE(B64,C64))","v":{"$error":"#REF!"}}]
[63,"衢州市卫生健康委员会","衢州市人民医院","财政适当补助","063","总务管理","专技",1,"本科及以上","本科所学专业要求为：电气工程及其自动化 或者 机械设计制造及其自动化 或者 机械工程 或者 自动化\n研究生所学专业要求为：机械工程","不限","具有两年及以上机械、电气维修工作经历","不限","35周岁及以下","不限","不限","0570-3122115",{"$nulls":815},{"$f":"EXACT(#REF!,CONCATENATE(B65,C65))","v":{"$error":"#REF!"}}]
[64,null,null,"财政适当补助","064","医疗设备（耗材）管理","专技",1,"本科及以上","本科所学专业要求为：计算机科学与技术 或者 生物医学工程 或者 电子信息工程 或者 医学信息工程 或者 电气工程及其自动化 或者 标准化工程\n研究生所学专业要求为：计算机科学与技术 或者 生物医学工程 或者 医学信息工程","不限","具有两年及以上医疗设备或医用耗材管理工作经历\n","不限","35周岁及以下","不限","不限","0570-3122115",{"$nulls":815},{"$f":"EXACT(#REF!,CONCATENATE(B66,C66))","v":{"$error":"#REF!"}}]
[65,null,null,"财政适当补助","065","信息管理","专技",2,"本科及以上","本科所学专业要求为：计算机科学与技术 或者 信息管理与信息系统 或者 软件工程 或者 计算机及软件 或者网络工程或者 电子信息工程\n研究生所学专业要求为：计算机科学与技术 或者 信息管理与信息系统 或者 软件工程","不限","具有两年及以上医疗信息管理工作经历","不限","35周岁及以下","不限","不限","0570-3122115"]
[66,null,null,"财政适当补助","066","行政文员1","专技",1,"硕士研究生及以上","研究生所学专业要求为：三级专业目录中国语言文学类：不限 或者 新闻传播学类：不限 或者 工商管理类：不限 或者 公共管理类：不限","不限","不限","不限","35周岁及以下","不限","不限","0570-3122115"]
[67,null,null,"财政适当补助","067","行政文员2","专技",1,"硕士研究生及以上","研究生所学专业要求为：人力资源管理 或者 公共人力资源管理 或者 公共组织与人力资源  或者 公共组织与人力资源管理 或者 组织与人力资源管理","不限","不限","不限","35周岁及以下","不限","不限","0570-3122115"]
[68,null,null,"财政适当补助","068","维修工程师","专技",6,"硕士研究生及以上","研究生所学专业要求为：三级专业目录生物医学工程类：不限 或者 电气类：不限","不限","不限","不限","35周岁及以下","不限","不限","0570-3122115"]
[69,null,"衢州市中医医院","财政适当补助","069","信息管理","专技",1,"本科及以上","研究生所学专业要求：计算机科学与技术 或者 信息管理与信息系统或者 软件工程\n本科所学专业要求：计算机科学与技术 或者 信息管理与信息系统 或者 软件工程或者 计算机及软件 或者 网络工程 或者 电子信息工程","不限","具有两年及以上医疗信息管理工作经历","不限","35周岁及以下","不限","不限","0570-3086313",{"$nulls":815},{"$f":"EXACT(#REF!,CONCATENATE(B71,C71))","v":{"$error":"#REF!"}}]
[70,null,null,"财政适当补助","070","医疗设备（耗材）管理","专技",1,"本科及以上","本科所学专业要求为：生物医学工程 或者 电子信息工程 或者 医学信息工程 或者 电气工程及其自动化 或者 标准化工程\n研究生所学专业要求为：生物医学工程 或者 医学信息工程 ","不限","具有两年及以上医疗设备或医用耗材管理工作经历","不限","35周岁及以下","不限","不限","0570-3086313",{"$nulls":815},{"$f":"EXACT(#REF!,CONCATENATE(B72,C72))","v":{"$error":"#REF!"}}]
[71,null,null,"财政适当补助","071","党政办干事","专技",1,"本科及以上","本科所学专业要求为：汉语言文学 或者 汉语言 或者 秘书学 或者高级文秘 或者 文秘与办公自动化 或者 新闻学 或者 传播学或者 新闻与传播 或者 广播电视新闻学或者 广播电视新闻或者 公共事业管理\n研究生所学专业要求为：新闻学 或者 传播学 或者 新闻与传播","不限","不限","不限","35周岁及以下","不限","不限","0570-3086313"]
[72,null,null,"财政适当补助","072","ICD编码员","专技",1,"本科及以上","本科所学专业要求为：公共事业管理 或者 统计学或者 档案学或者 信息资源管理 或者 应用统计学\n研究生所学专业要求为：统计学 或者 档案学 或者 信息资源管理 或者 应用统计学 或者 流行病与卫生统计学","不限","具有两年及以上ICD编码工作经历","不限","35周岁及以下","不限","不限","0570-3086313",{"$nulls":815},{"$f":"EXACT(#REF!,CONCATENATE(B74,C74))","v":{"$error":"#REF!"}}]
[73,null,null,"财政适当补助","073","财务管理","专技",1,"硕士研究生及以上","研究生所学专业要求为：会计 或者 会计学 或者 财务管理 或者 财务审计与风险管理 或者 审计 或者 审计学","不限","不限","不限","35周岁及以下","不限","不限","0570-3086313",{"$nulls":815},{"$f":"EXACT(#REF!,CONCATENATE(B75,C75))","v":{"$error":"#REF!"}}]
[74,null,"衢州市第三医院","财政适当补助","074","财务管理","专技",1,"本科及以上","本科所学专业要求为：会计 或者 会计学 或者 财务管理 或者 财务会计与审计 或者 财务会计教育 或者 审计学\n研究生所学专业要求为：会计 或者 会计学 或者 财务管理 或者 财务审计与风险管理 或者 审计 或者 审计学","不限","不限","不限","35周岁及以下","不限","不限","0570-3011560",{"$nulls":815},{"$f":"EXACT(#REF!,CONCATENATE(B76,C76))","v":{"$error":"#REF!"}}]
[75,null,"衢州市疾病预防控制中心","财政全额补助","075","财务管理","专技",1,"本科及以上","本科所学专业要求为：会计 或者 会计学 或者 财务管理 或者 财务会计与审计 或者 财务会计教育 或者 审计学\n研究生所学专业要求为：会计 或者 会计学 或者 财务管理 或者 财务审计与风险管理 或者 审计 或者 审计学","不限","应届高校毕业生\n","不限","35周岁及以下","不限","不限","0570-3052607",{"$nulls":815},{"$f":"EXACT(#REF!,CONCATENATE(B77,C77))","v":{"$error":"#REF!"}}]
[76,null,"衢州市急救中心","财政全额补助","076","信息管理","专技",1,"本科及以上","本科所学专业要求为：计算机科学与技术 或者 信息管理与信息系统或者 软件工程 或者 计算机及软件 或者 计算机及应用 或者 计算机应用工程 或者 软件工程技术 或者 网络工程 或者 网络工程技术或者 信息安全 或者 数据科学与大数据技术 或者 大数据工程技术 或者 信息安全与管理\n研究生所学专业要求为：三级专业目录计算机科学与技术类：不限","不限","不限","不限","35周岁及以下","不限","不限","0570-3088510",{"$nulls":815},{"$f":"EXACT(#REF!,CONCATENATE(B78,C78))","v":{"$error":"#REF!"}}]
[77,null,"衢州市卫生健康发展中心","财政全额补助","077","人事档案管理","专技",1,"本科及以上","本科所学专业要求为：汉语言文学 或者 汉语言 或者 档案学 或者档案管理 或者 信息资源管理 或者 社会学 或者 社会工作或者 社会工作与管理 或者 卫生事业管理 或者 人力资源管理\n研究生所学专业要求为：档案学 或者 信息资源管理 或者 社会工作 或者 卫生事业管理 或者 卫生政策与管理 或者 人力资源管理  或者  公共人力资源管理   或者  组织与人力资源管理  或者  公共组织与人力资源或者  公共组织与人力资源管理","不限","不限","中共党员（含预备党员）","35周岁及以下","不限","不限","0570-3089826",{"$nulls":815},{"$f":"EXACT(#REF!,CONCATENATE(B79,C79))","v":{"$error":"#REF!"}}]
[78,"衢州市退役军人事务局","衢州市双拥服务中心","财政全额补助","078","综合业务1","专技",1,"本科及以上","不限","不限","退役军人","不限","35周岁及以下","衢州户籍或者衢州批准入伍的人员","不限","0570-3030726、0570-3032255","需服役5年及以上",{"$nulls":814},{"$f":"EXACT(#REF!,CONCATENATE(B80,C80))","v":{"$error":"#REF!"}}]
[79,null,null,"财政全额补助","079","综合业务2","专技",1,"本科及以上","不限","不限","不限","不限","35周岁及以下","不限","不限","0570-3030726、0570-3032255",{"$nulls":815},{"$f":"EXACT(#REF!,CONCATENATE(B81,C81))","v":{"$error":"#REF!"}}]
[80,"衢州市市场监督管理局","衢州市特种设备检验中心","财政适当补助","080","特种设备检验","专技",1,"硕士研究生及以上","研究生所学专业要求为：机械制造及其自动化 或者 机械电子工程 或者机械设计及理论 或者 检测技术与自动化装置 或者 电力系统及其自动化 或者 工程热物理 或者 热能工程 或者 化工过程机械 或者 焊接科学与技术 ","不限","不限","不限","35周岁及以下（副高及以上职称可放宽至40周岁）","浙江户籍","不限（户外工作，建议男性）",13587107792,"持有国家市场监督总局颁发的电梯、起重机械、场（厂）内机动车辆、锅炉、压力容器、压力管道检验人员资格证书或锅炉介质检测人员资格证书（应至少持有上述其中一种证书且证书在有效期范围内），学历可放宽至本科及以上，专业为理工类",{"$nulls":814},{"$f":"EXACT(#REF!,CONCATENATE(B82,C82))","v":{"$error":"#REF!"}}]
[81,null,"衢州市食品药品检验研究院","财政全额补助","081","药品检验","专技",1,"硕士研究生及以上","研究生所学专业要求为：分析化学 或者 应用化学 或者 药学 或者 中药学 或者 药物分析学","不限 ","不限 ","不限","35周岁及以下 ","不限 ","不限 ","0570-8358007",{"$nulls":815},{"$f":"EXACT(#REF!,CONCATENATE(B83,C83))","v":{"$error":"#REF!"}}]
[82,"衢州市体育局","衢州市体育事业发展中心","财政适当补助","082","综合管理","管理",1,"本科及以上","不限","不限","不限","不限","35周岁及以下","不限","不限","0570-3081112",{"$nulls":815},{"$f":"EXACT(#REF!,CONCATENATE(B84,C84))","v":{"$error":"#REF!"}}]
[83,"衢州市综合行政执法局","衢州市城市运行中心","财政全额补助","083","综合管理","管理",1,"本科及以上","本科所学专业要求为：汉语言文学 或者 汉语言 或者 汉语国际教育 或者 汉语言文学教育 或者 新闻学 或者 文秘教育 或者 秘书学 或者 高级文秘 或者 文秘与办公自动化\n 研究生所学专业要求为：汉语国际教育 或者 汉语言文化国际教育 或者 新闻学 或者 高级秘书与行政助理学","不限","不限","不限","30周岁及以下","不限","不限","0570-3025310 ",{"$nulls":815},{"$f":"EXACT(#REF!,CONCATENATE(B85,C85))","v":{"$error":"#REF!"}}]
[84,"衢州市公共资源交易监督管理办公室","衢州市公共资源交易中心","财政全额补助","084","建设工程交易管理","专技",1,"本科及以上","本科所学专业要求为：三级专业目录土木类：不限 或者 水利类：不限 或者 测绘类：不限\n研究生所学专业要求为：三级专业目录建筑学类：不限 或者 土木工程类：不限 或者 水利工程类：不限 或者 测绘科学与技术类：不限","不限","不限","不限","35周岁及以下","不限","不限","0570-3899062",{"$nulls":815},{"$f":"EXACT(#REF!,CONCATENATE(B86,C86))","v":{"$error":"#REF!"}}]
[85,"衢州智造新城管理委员会","衢州智造新城科技创新服务中心","财政全额补助","085","商贸服务","管理",1,"本科及以上","本科所学专业要求为：三级专业目录经济与贸易类：不限\n研究生所学专业要求为：三级专业目录应用经济学类：不限","不限","不限","不限","35周岁及以下","不限","不限","0570-3678566",{"$nulls":815},{"$f":"EXACT(#REF!,CONCATENATE(B87,C87))","v":{"$error":"#REF!"}}]
[86,null,"衢州智造新城公共资源交易中心","财政全额补助","086","商贸服务","管理",1,"本科及以上","本科所学专业要求为：三级专业目录经济与贸易类：不限\n研究生所学专业要求为：三级专业目录应用经济学类：不限","不限","不限","不限","35周岁及以下","不限","不限","0570-3678566",{"$nulls":815},{"$f":"EXACT(#REF!,CONCATENATE(B88,C88))","v":{"$error":"#REF!"}}]
[87,null,"衢州智造新城市政环卫园林中心","财政全额补助","087","工程管理","专技",1,"本科及以上","本科所学专业要求为：三级专业目录土木类 不限 或者 土木工程  或者 或者 建筑工程 或者 工程结构分析 或者 道路与桥梁工程 或者 市政工程                                      \n研究生所学专业要求为：三级专业目录土木工程类 不限 或者 道路交通工程与灾害防治 或者工程管理 或者 建设工程管理 或者 建筑与土木工程 或者 结构工程 或者 桥梁与隧道工程 或者 市政工程  或者 土木工程 或者 土木水利 或者 土木工程建造与管理  ","不限","不限","不限","35周岁及以下","不限","不限","0570-3678566",{"$nulls":815},{"$f":"EXACT(#REF!,CONCATENATE(B89,C89))","v":{"$error":"#REF!"}}]
[88,null,null,"财政全额补助","088","综合管理","管理",2,"硕士研究生及以上","不限","不限","不限","不限","35周岁及以下","不限","不限","0570-3678566",{"$nulls":815},{"$f":"EXACT(#REF!,CONCATENATE(B90,C90))","v":{"$error":"#REF!"}}]
[89,null,"衢州智造新城盘龙企业社区服务中心","财政全额补助","089","化工企业监管","专技",2,"本科及以上","本科所学专业要求为：化学工程与工艺 或者 化学工程 或者 化学工艺 或者 制药学 或者 能源化学工程 或者 化学工程与工业生物工程  或者 化工安全工程 或者 精细化工 或者 化学资源科学与工程 或者  高分子化学工程与技术 或者 应用化学                                                                             研究生所学专业要求为：化学工程与工艺 或者 化学工程 或者 化学工艺或者 化工安全工程 或者 精细化工 或者 高分子化学工程与技术","不限","不限","不限","35周岁及以下","不限","不限","0570-3678566",{"$nulls":815},{"$f":"EXACT(#REF!,CONCATENATE(B91,C91))","v":{"$error":"#REF!"}}]
[90,"衢州学院","衢州学院","财政全额补助","090","教学秘书","专技",1,"硕士研究生及以上","不限","不限","不限","不限","30周岁及以下","不限","不限","0570-8015033",{"$nulls":815},{"$f":"EXACT(#REF!,CONCATENATE(B92,C92))","v":{"$error":"#REF!"}}]
[91,null,"衢州学院","财政全额补助","091","辅导员1","专技",3,"硕士研究生及以上","不限","不限","研究生或本科期间曾担任班长或团支部书记或校院各类学生组织部长及以上学生干部经历","中共党员（含预备党员）","30周岁及以下","不限","男","0570-8015033","需入住男生公寓",{"$nulls":814},{"$f":"EXACT(#REF!,CONCATENATE(B93,C93))","v":{"$error":"#REF!"}}]
[92,null,"衢州学院","财政全额补助","092","辅导员2","专技",3,"硕士研究生及以上","不限","不限","研究生或本科期间曾担任班长或团支部书记或校院各类学生组织部长及以上学生干部经历","中共党员（含预备党员）","30周岁及以下","不限","女","0570-8015033","需入住女生公寓",{"$nulls":814},{"$f":"EXACT(#REF!,CONCATENATE(B94,C94))","v":{"$error":"#REF!"}}]
[93,null,"衢州学院","财政全额补助","093","文秘","专技",1,"硕士研究生及以上","不限","不限","具备两年及以上综合文字工作经历","中共党员（含预备党员）","30周岁及以下","不限","不限","0570-8015033",{"$nulls":815},{"$f":"EXACT(#REF!,CONCATENATE(B95,C95))","v":{"$error":"#REF!"}}]
[94,null,"衢州学院","财政全额补助","094","财务管理","专技",1,"硕士研究生及以上","研究生所学专业要求为：财务管理 或者 财务学 或者 会计 或者 会计学 或者 审计 或者 审计学","不限","不限","不限","35周岁及以下","不限","不限","0570-8015033",{"$nulls":815},{"$f":"EXACT(#REF!,CONCATENATE(B96,C96))","v":{"$error":"#REF!"}}]
[95,null,"衢州学院","财政全额补助","095","实验员1","专技",1,"硕士研究生及以上","研究生所学专业要求为：三级专业目录电气工程类:不限 或者 控制科学与工程类：不限 或者 信息与通信工程类;不限 或者 电子科学与技术类：不限 或者 计算机科学与技术类：不限 或者 软件工程类：不限 或者 网络空间安全类；不限 或者 仪器科学与技术类：不限 或者 光学工程类：不限","不限","不限","不限","30周岁及以下","不限","不限","0570-8015033",{"$nulls":815},{"$f":"EXACT(#REF!,CONCATENATE(B97,C97))","v":{"$error":"#REF!"}}]
[96,null,"衢州学院","财政全额补助","096","实验员2","专技",1,"硕士研究生及以上","研究生所学专业要求为：三级专业目录机械工程类：不限","不限","不限","不限","30周岁及以下","不限","不限","0570-8015033",{"$nulls":815},{"$f":"EXACT(#REF!,CONCATENATE(B98,C98))","v":{"$error":"#REF!"}}]
[97,"衢州市水利局","衢州市铜山源水库管理中心","财政全额补助","097","财务管理","专技",1,"本科及以上","本科所学专业要求为：会计学 或者 财务会计与审计 或者 会计  或者 财务管理 或者  财务会计教育\n研究生所学专业要求为：财务管理 或者 财务学 或者 会计 或者 会计学 ","不限","不限","不限","35周岁及以下","不限","不限","0570-2921260",{"$nulls":815},{"$f":"EXACT(#REF!,CONCATENATE(B99,C99))","v":{"$error":"#REF!"}}]
[98,null,null,"财政全额补助","098","综合管理","管理",1,"本科及以上","本科所学专业要求为：三级专业目录法学类：不限\n研究生所学专业要求为：三级专业目录法学类：不限","不限","不限","不限","35周岁及以下","不限","不限","0570-2921260",{"$nulls":815},{"$f":"EXACT(#REF!,CONCATENATE(B100,C100))","v":{"$error":"#REF!"}}]
[99,"衢州市总工会","衢州市工人文化宫","财政适当补助","099","宣教干事\n（音乐舞蹈）","管理",1,"本科及以上","本科所学专业要求为：三级专业目录音乐与舞蹈学类：不限\n研究生所学专业要求为：三级专业目录音乐与舞蹈学类：不限","不限","不限","不限","30周岁及以下","不限","不限","0570-3029536",{"$nulls":815},{"$f":"EXACT(#REF!,CONCATENATE(B101,C101))","v":{"$error":"#REF!"}}]
[100,null,null,"财政适当补助","100","宣教干事\n（美术）","管理",1,"本科及以上","本科所学专业要求为：三级专业目录美术学类：不限\n研究生所学专业要求为：三级专业目录美术学类：不限","不限","不限","不限","30周岁及以下","不限","不限","0570-3029536",{"$nulls":815},{"$f":"EXACT(#REF!,CONCATENATE(B102,C102))","v":{"$error":"#REF!"}}]
[101,null,null,"财政适当补助","101","剧管科干事 \n（设备管理）","管理",1,"本科及以上","本科所学专业要求为：三级专业目录电子信息类：不限 或者 计算机类：不限  或者 自动化类：不限\n研究生所学专业要求为：三级专业目录电子科学与技术类：不限 或者 计算机科学与技术类：不限 或者 信息与通信工程类：不限 或者 控制科学与工程类：不限","不限","不限","不限","30周岁及以下","不限","不限","0570-3029536",{"$nulls":815},{"$f":"EXACT(#REF!,CONCATENATE(B103,C103))","v":{"$error":"#REF!"}}]
[102,"共青团衢州市委员会","衢州市青少年宫","财政适当补助","102","财务管理","专技",1,"本科及以上","本科所学专业要求为：会计 或者 会计学 或者 会计信息技术 或者 财务会计与审计 或者 财务管理  或者 审计学 或者 财务会计教育                                                          研究生所学专业要求为：会计 或者 会计学 或者 财务学 或者 财务管理  或者 审计 或者 审计学 ","不限","具有两年及以上财务相关工作经历","不限","35周岁及以下","不限","不限","0570-8880206",{"$nulls":815},{"$f":"EXACT(#REF!,CONCATENATE(B104,C104))","v":{"$error":"#REF!"}}]
[103,null,null,"财政适当补助","103","文学教师","专技",1,"本科及以上","本科所学专业要求为：汉语言文学 或者 汉语言 或者 汉语言文学教育 或者 应用语言学 或者 秘书学 或者 文秘教育 或者 高级文秘 或者 文秘与办公自动化  或者 新闻学 或者 传播学 或者 编辑出版学\n研究生所学专业要求为：汉语言文字学 或者 写作学 或者 新闻传播学 或者 新闻学  或者 传播学 或者 编辑出版学 或者 高级秘书与行政助理学","不限","不限","不限","35周岁及以下","不限","不限","0570-8880206","在聘用后两年内取得教师资格证，未如期取得的，依法解除聘用合同",{"$nulls":814},{"$f":"EXACT(#REF!,CONCATENATE(B105,C105))","v":{"$error":"#REF!"}}]
[104,null,null,"财政适当补助","104","少先队辅导员","专技",1,"本科及以上","不限","不限","不限","共青团员或中共党员（含预备党员）","35周岁及以下","不限","不限","0570-8880206","在聘用后两年内取得教师资格证，未如期取得的，依法解除聘用合同",{"$nulls":814},{"$f":"EXACT(#REF!,CONCATENATE(B106,C106))","v":{"$error":"#REF!"}}]
[105,"衢州市文学艺术界联合会","衢州书画院","财政全额补助","105","专职书画师","专技",1,"硕士研究生及以上","研究生所学专业要求为：中国画 或者 中国书画 或者 美术学","不限","不限","不限","35周岁及以下","不限","不限","0570-3033586、17757000991","本科为中国画专业，研究生可放宽至美术学其他专业",{"$nulls":814},{"$f":"EXACT(#REF!,CONCATENATE(B107,C107))","v":{"$error":"#REF!"}}]
[106,"衢州市气象局","衢州市气象雷达站","财政全额补助","106"," 雷达维护保障"," 专技",1,"硕士研究生及以上"," 大气遥感与大气探测 或者 大气科学 或者 气象学 或者 应用气象学 ","不限 ","不限 ","不限 ","35周岁及以下 ","不限 ","不限 ","0570-3022593 ","需登高作业，适宜男性报考",{"$nulls":814},{"$f":"EXACT(#REF!,CONCATENATE(B108,C108))","v":{"$error":"#REF!"}}]
[{"$nulls":7},125]
["备注：应届高校毕业生具体包含以下对象：①2021年、2022年和2023年普通高校毕业生，含同期毕业的留学回国人员；②按国家政策规定可以享受应届毕业生就业待遇的其他情形人员。"]